[Event "MPL-4 Indian Chess Tour 2022"]
[Site "Chess24"]
[Date "2022.09.27"]
[Round "5.3"]
[White "Sethuraman, S.P."]
[Black "Karthikeyan, Murali"]
[Result "1/2-1/2"]
[ECO "C55"]
[WhiteElo "2638"]
[BlackElo "2623"]
[Annotator "TA"]
[PlyCount "111"]
[EventDate "2022.09.29"]
[EventType "tourn (rapid)"]
[EventCountry "NET"]
[SourceTitle "playchess.com"]
[Source "ChessBase"]
[SourceQuality "1"]
[WhiteTeam "India"]
[BlackTeam "India"]
[WhiteTeamCountry "IND"]
[BlackTeamCountry "IND"]
[TimeControl "900+10"]

{[%evp 9,111,32,35,31,31,31,37,45,45,31,20,15,17,8,14,10,8,0,8,5,4,13,42,35,41,29,28,35,35,29,39,25,15,20,43,35,85,68,114,114,146,43,32,38,32,29,30,0,0,0,0,0,0,0,0,0,0,0,0,0,0,0,0,0,0,0,0,0,0,0,0,0,0,0,0,0,0,0,0,0,0,0,0,0,0,0,0,0,0,0,0,0,0,0,0,0,0,0,0,0,0,0,0,0]} 1. e4 {[%emt 0:00:00]} e5 {[%emt 0:00:00]} 2. Nf3 {[%emt 0:00:15]} Nc6 {[%emt 0:00:06]} 3. Bc4 {[%emt 0:00:02]} Nf6 {[%emt 0:00:02]} 4. d3 {[%emt 0:00:01]} h6 {[%emt 0:00:03]} 5. c3 {[%emt 0:00:08]} d6 {[%emt 0:00:11]} 6. a4 {[%emt 0:00:04] C55: Two Knights: 4 d3, 4 d4 exd4 5 e5 and Max Lange Attack.} g5 {[%emt 0:00:01]} 7. Qb3 {[%emt 0:00:06]} Qd7 {[%emt 0:00:06]} 8. a5 {[%emt 0:00:15] White is slightly better.} Bg7 {[%emt 0:00:46]} 9. Nbd2 {[%emt 0:00:01]} O-O {[%emt 0:00:35] [#]} 10. O-O $146 {[%emt 0:00:09]} ({Predecessor:} 10. Nf1 Ne7 11. Ng3 c6 12. d4 exd4 13. Nxd4 d5 14. exd5 Nfxd5 15. O-O f5 16. f4 {1-0 (34) Abergel,T (2374)-Agrest,I (2245) Germany 2022}) 10... Ne7 {[%emt 0:01:03]} 11. Re1 {[%emt 0:01:17]} Ng6 {[%emt 0:00:52] aiming for ...g4.} 12. Nf1 {[%emt 0:00:05]} c6 {[%emt 0:00:37]} 13. Qc2 {[%emt 0:02:12]} d5 {[%emt 0:01:37]} (13... g4 $5 14. N3d2 $8 d5 $11) 14. Bb3 {[%emt 0:00:02]} Qc7 {[%emt 0:00:46]} 15. Ng3 {[%emt 0:00:25]} Be6 {[%emt 0:01:17]} 16. d4 {[%emt 0:02:08]} Nxe4 {[%emt 0:02:30]} 17. Nxe4 {[%emt 0:00:21]} dxe4 {[%emt 0:00:03]} 18. Bxe6 {[%emt 0:00:04]} exf3 {[%emt 0:00:08]} 19. Qxg6 {[%emt 0:00:40]} ({Don't blunder} 19. gxf3 $2 Nh4 20. Bg4 f5 $19) 19... fxe6 {[%emt 0:01:06]} 20. Rxe5 {[%emt 0:03:08]} Rf6 {[%emt 0:02:29]} 21. Qe4 {[%emt 0:00:25]} Qd7 {[%emt 0:00:19]} 22. gxf3 {[%emt 0:04:13]} Rff8 {[%emt 0:01:44] [#]} (22... Re8 $14) 23. Rc5 $1 $16 {[%emt 0:01:52] Black must now prevent a6.} ({But not} 23. Rxe6 $6 Rfe8 24. Rxe8+ Rxe8 $11) 23... Rac8 {[%emt 0:01:29]} (23... a6 $1 $14) 24. Be3 {[%emt 0:00:20]} Rf7 {[%emt 0:00:58] [#]} 25. Re1 {[%emt 0:00:20] White is more active.} ({Better is} 25. Kg2 $1 $16) 25... b6 $14 {[%emt 0:00:06]} 26. axb6 {[%emt 0:00:02]} axb6 {[%emt 0:00:00]} 27. Rc4 {[%emt 0:00:06][%cal Bc5c4,Bc4a4,Ba4a7][%mdl 32]} Qd5 {[%emt 0:00:06]} 28. Qxd5 {[%emt 0:00:37]} (28. Ra4 {seems wilder.} Rxf3 29. Qg4 b5 30. Ra6) 28... exd5 {[%emt 0:00:00] The position is equal.} 29. Ra4 {[%emt 0:00:01]} Rxf3 {[%emt 0:00:01]} 30. Rea1 {[%emt 0:00:06]} b5 {[%emt 0:00:18]} 31. Ra7 {[%emt 0:00:09]} Rf7 {[%emt 0:00:03]} 32. Kf1 {[%emt 0:00:33]} Re8 {[%emt 0:00:11]} 33. Ke2 {[%emt 0:00:07]} Bf8 {[%emt 0:00:05]} 34. Kd3 {[%emt 0:00:18]} Bd6 {[%emt 0:00:16]} 35. Rxf7 {[%emt 0:00:05]} Kxf7 $11 {[%emt 0:00:00][%mdl 4096] Endgame KRB-KRB} 36. Ra6 {[%emt 0:00:04]} Rc8 {[%emt 0:00:06]} 37. h3 {[%emt 0:00:01]} Kg6 {[%emt 0:00:06]} 38. Ke2 {[%emt 0:00:05]} h5 {[%emt 0:00:25]} 39. Kf3 {[%emt 0:00:04]} Kf5 {[%emt 0:00:09]} 40. Ra7 {[%emt 0:00:04]} Rc7 {[%emt 0:00:37] Prevents Rg7.} 41. Ra8 {[%emt 0:00:02]} g4+ {[%emt 0:00:20]} 42. hxg4+ {[%emt 0:00:01]} hxg4+ {[%emt 0:00:00]} 43. Ke2 {[%emt 0:00:06]} Rg7 {[%emt 0:00:19]} 44. Rc8 {[%emt 0:00:09]} Bc7 {[%emt 0:00:03]} 45. Kd3 {[%emt 0:00:24]} Ke6 {[%emt 0:00:08]} 46. Bh6 {[%emt 0:00:25]} Rf7 {[%emt 0:00:10]} 47. Be3 {[%emt 0:00:02]} Rg7 {[%emt 0:00:05] Inhibits Rg8.} 48. Bh6 {[%emt 0:00:05]} Rf7 {[%emt 0:00:06]} 49. Ke2 {[%emt 0:00:05]} Kd7 {[%emt 0:00:37]} 50. Rg8 {[%emt 0:00:02]} Bf4 {[%emt 0:00:07]} 51. Bxf4 {[%emt 0:00:55]} Rxf4 {[%emt 0:00:00]} 52. Rg7+ {[%emt 0:00:02]} Kd6 {[%emt 0:00:04]} 53. Rg6+ {[%emt 0:00:05]} Kd7 {[%emt 0:00:02]} 54. Rg7+ {[%emt 0:00:02]} Kd6 {[%emt 0:00:01]} 55. Rg6+ {[%emt 0:00:02]} Kd7 {[%emt 0:00:01]} 56. Rg7+ {[%emt 0:00:00] Weighted Error Value: White=0.05 (flawless) /Black=0.05 (flawless)} 1/2-1/2

[Event "MPL-4 Indian Chess Tour 2022"]
[Site "Chess24"]
[Date "2022.09.27"]
[Round "5.4"]
[White "Mitrabha, Guha"]
[Black "Adhiban, B.."]
[Result "1-0"]
[ECO "A21"]
[WhiteElo "2471"]
[BlackElo "2603"]
[Annotator "TA"]
[PlyCount "233"]
[EventDate "2022.09.29"]
[EventType "tourn (rapid)"]
[EventCountry "NET"]
[SourceTitle "playchess.com"]
[Source "ChessBase"]
[SourceQuality "1"]
[WhiteTeam "India"]
[BlackTeam "India"]
[WhiteTeamCountry "IND"]
[BlackTeamCountry "IND"]
[TimeControl "900+10"]

{[%evp 20,233,0,0,0,0,0,0,0,0,1,-18,0,-12,0,-13,0,-16,-5,-22,-4,-15,-8,-28,10,4,112,96,104,103,95,95,91,94,94,76,96,99,93,76,121,67,79,47,41,0,80,69,117,77,158,109,207,90,214,207,167,166,152,45,183,32,41,0,0,0,0,0,0,0,5,8,341,337,337,335,700,101,92,97,92,100,96,93,91,18,18,18,18,18,80,80,80,80,59,18,395,395,395,395,387,387,7245,4141,29954,29955,29955,29956,29956,29955,29957,29957,29957,29957,29959,29958,29961,29962,29961,29962,29962,29964,29966,29967,29969,29970,29970,29970,29969,29971,29973,29970,29979,29972,29972,29971,29971,29972,29972,29972,29971,29970,29969,29970,29970,29971,29969,29974,29973,29973,29975,29976,29978,29976,29980,29980,29980,29981,29981,29982,29983,29980,29983,29984,29985,29984,29984,29985,29985,29984,29984,29979,29979,29977,29977,29978,29978,29979,29979,29980,29980,29981,29981,4133,29982,29974,29983,29984,29984,29985,29985,29986,29987,29988,29988,29989,29989,29990,29990,29991,29991,29990,29992,29993,29993,29994,29994,29995,29995,29996,29996,29995,29996,29997,29997,4153]} 1. c4 {[%emt 0:00:00]} d6 {[%emt 0:00:00]} 2. Nc3 {[%emt 0:00:03]} e5 {[%emt 0:00:01]} 3. g3 {[%emt 0:00:01]} f5 {[%emt 0:00:06]} 4. Bg2 {[%emt 0:00:02]} Be7 {[%emt 0:00:01]} 5. d3 {[%emt 0:00:06]} Nf6 {[%emt 0:00:01]} 6. b4 {[%emt 0:00:03]} O-O {[%emt 0:00:05]} 7. Nf3 {[%emt 0:00:02]} a6 {[%emt 0:00:10]} 8. Rb1 {[%emt 0:00:06]} h6 {[%emt 0:00:01]} 9. a4 {[%emt 0:00:11]} Be6 {[%emt 0:00:03]} 10. O-O {[%emt 0:00:22]} Qe8 {[%emt 0:01:19]} 11. b5 {[%emt 0:00:41]} axb5 {[%emt 0:00:02]} 12. Rxb5 {[%emt 0:00:21]} Bc8 {[%emt 0:00:03]} 13. c5 {[%emt 0:00:21]} Nc6 {[%emt 0:00:50]} 14. cxd6 {[%emt 0:00:51]} Bxd6 {[%emt 0:00:56]} 15. e3 {[%emt 0:01:24]} Kh8 {[%emt 0:00:10]} 16. Nd2 {[%emt 0:00:12]} Na5 {[%emt 0:00:05]} 17. Rb1 {[%emt 0:02:27]} c6 {[%emt 0:00:29]} 18. Bb2 {[%emt 0:00:50]} Be6 {[%emt 0:00:06]} 19. Ne2 {[%emt 0:00:12]} Ba2 {[%emt 0:00:38]} 20. Rc1 {[%emt 0:00:13]} Bd5 {[%emt 0:00:15]} 21. e4 {[%emt 0:00:09]} Be6 {[%emt 0:00:22]} 22. d4 {[%emt 0:00:11]} exd4 {[%emt 0:01:36]} (22... Nxe4 $1 $11 23. Nxe4 (23. dxe5 Bc7 $11) 23... fxe4) 23. Nxd4 $16 {[%emt 0:00:03]} fxe4 {[%emt 0:00:01]} 24. Nxe6 {[%emt 0:01:29]} Qxe6 {[%emt 0:00:03]} 25. Bxf6 {[%emt 0:00:00]} e3 {[%emt 0:01:34]} 26. Bxg7+ {[%emt 0:03:39]} Kxg7 {[%emt 0:00:00]} 27. fxe3 {[%emt 0:00:40]} Qxe3+ {[%emt 0:00:02]} 28. Kh1 {[%emt 0:00:01]} Rxf1+ {[%emt 0:00:01]} 29. Nxf1 {[%emt 0:00:02]} Qe5 {[%emt 0:00:01]} 30. Qg4+ {[%emt 0:00:06]} (30. Nd2 $16) 30... Qg5 $14 {[%emt 0:00:05]} 31. Qd7+ {[%emt 0:00:08]} Qe7 {[%emt 0:00:02]} 32. Qg4+ {[%emt 0:00:23]} Qg5 {[%emt 0:00:01]} 33. Qd4+ $1 {[%emt 0:00:11]} Qe5 {[%emt 0:00:12]} (33... Be5 $14 {is superior.} 34. Qd7+ Kh8) 34. Qd3 $16 {[%emt 0:00:11]} Re8 {[%emt 0:00:19]} (34... Rf8 $142) 35. Nd2 $16 {[%emt 0:00:25]} Bc7 {[%emt 0:02:51]} (35... Re7 $16 {was called for.}) 36. Ne4 {[%emt 0:00:37]} (36. Rf1 $18 {is more deadly.}) 36... Rd8 {[%emt 0:00:09]} (36... Re7 $16) 37. Qf3 $18 {[%emt 0:00:04]} Rf8 {[%emt 0:00:26]} 38. Qg4+ {[%emt 0:00:03]} Kh8 {[%emt 0:00:01]} 39. h4 {[%emt 0:00:35]} (39. Qg6 $16 Qg7 40. Qe6) 39... Nb3 {[%emt 0:02:54]} (39... Qf5 $1 $14 40. Qe2 Qg6) 40. Rb1 $2 {[%emt 0:00:05]} (40. Rf1 $18 Rxf1+ 41. Bxf1) 40... Rg8 $14 {[%emt 0:00:14]} 41. Qd7 {[%emt 0:01:48]} Nc5 $1 {[%emt 0:00:11]} 42. Qd2 {[%emt 0:00:03]} Rg6 {[%emt 0:00:03]} 43. Re1 {[%emt 0:00:34]} Re6 {[%emt 0:03:02]} 44. Qf2 {[%emt 0:00:09]} Re8 {[%emt 0:01:11]} 45. Qf7 {[%emt 0:01:02]} Qe7 $2 {[%emt 0:01:08][%mdl 8192]} (45... Nxa4 $2 46. Rf1 Qe7 47. Qh5 $18) (45... Ba5 $2 46. Re2 Qe6 47. Qh5 $18) (45... Rg8 $11) 46. Qh5 $1 $18 {[%emt 0:00:06]} Kg7 {[%emt 0:00:06]} 47. Re2 {[%emt 0:00:41]} Qe5 $2 {[%emt 0:00:45] [#]} (47... Nxe4 48. Rxe4 Be5) 48. Qg4+ $2 {[%emt 0:00:06]} (48. Ng5 $1 $18 {[%mdl 512] and the rest is easy. Qf7+ would kill now.} hxg5 49. Rxe5 (49. Qxe8 Qxe8 50. Rxe8 Bxg3 $16) 49... Rxe5 50. hxg5 Re1+ 51. Kh2) 48... Kh8 $16 {[%emt 0:00:02]} 49. Nc3 $1 {[%emt 0:00:32]} Rg8 {[%emt 0:00:20]} 50. Rxe5 {[%emt 0:00:06]} Rxg4 {[%emt 0:00:01]} 51. Rxc5 {[%emt 0:00:01]} Bxg3 {[%emt 0:00:03]} 52. Rh5 {[%emt 0:00:27]} (52. Bf3 $16 Rxh4+ 53. Kg2) 52... Rxh4+ $11 {[%emt 0:00:14]} 53. Rxh4 {[%emt 0:00:02]} Bxh4 {[%emt 0:00:00]} 54. Ne4 {[%emt 0:00:02]} Be7 {[%emt 0:00:01] [#]} (54... Be1 $1 $11) 55. Nd2 $1 $16 {[%emt 0:00:10]} Bb4 {[%emt 0:00:06] [#]} 56. Nb3 $1 {[%emt 0:00:02]} Kg7 {[%emt 0:00:10]} 57. a5 {[%emt 0:00:06]} Bd6 $2 {[%emt 0:00:08][%mdl 8192]} (57... Kf6 $11) 58. Bh3 $18 {[%emt 0:00:02]} c5 {[%emt 0:00:16]} 59. Nd2 {[%emt 0:00:08]} Kf6 {[%emt 0:00:17]} 60. Nc4 {[%emt 0:00:05]} Bc7 $2 {[%emt 0:00:25]} (60... Ke7 61. Bc8 Bf4 62. Bxb7 Kd8) 61. Kg2 $18 {[%emt 0:00:16]} Bxa5 {[%emt 0:00:17]} 62. Nxa5 {[%emt 0:00:02]} b5 {[%emt 0:00:01]} 63. Bd7 {[%emt 0:00:12]} b4 {[%emt 0:00:01]} 64. Nc4 {[%emt 0:00:04]} h5 {[%emt 0:00:01]} 65. Kf3 {[%emt 0:00:04]} Kg5 {[%emt 0:00:02]} 66. Bh3 {[%emt 0:00:04]} h4 {[%emt 0:00:02]} 67. Nd2 {[%emt 0:00:10]} Kf6 {[%emt 0:00:03]} 68. Ne4+ {[%emt 0:00:07]} Ke5 {[%emt 0:00:01]} 69. Nxc5 {[%emt 0:00:01]} Kd4 {[%emt 0:00:00]} 70. Nb3+ {[%emt 0:00:01]} Kc3 {[%emt 0:00:00]} 71. Be6 {[%emt 0:00:01]} Kc2 {[%emt 0:00:02]} 72. Kg4 {[%emt 0:00:02]} Kc3 {[%emt 0:00:01]} 73. Kxh4 {[%emt 0:00:01]} Kd3 {[%emt 0:00:01]} 74. Kg5 {[%emt 0:00:02]} Ke4 {[%emt 0:00:01]} 75. Kf6 {[%emt 0:00:01]} Kf4 {[%emt 0:00:00]} 76. Ke7 {[%emt 0:00:01]} Ke5 {[%emt 0:00:01]} 77. Kd7 {[%emt 0:00:01]} Ke4 {[%emt 0:00:01]} 78. Kd6 {[%emt 0:00:01]} Kf4 {[%emt 0:00:01]} 79. Bc4 {[%emt 0:00:02]} Ke4 {[%emt 0:00:01]} 80. Kc5 {[%emt 0:00:01]} Ke5 {[%emt 0:00:00]} 81. Nd2 {[%emt 0:00:06]} Kf4 {[%emt 0:00:03]} 82. Kxb4 {[%emt 0:00:01]} Ke3 {[%emt 0:00:01]} 83. Kc3 {[%emt 0:00:01]} Kf4 {[%emt 0:00:01]} 84. Kd4 {[%emt 0:00:01]} Kf5 {[%emt 0:00:01]} 85. Ne4 {[%emt 0:00:03]} Kf4 {[%emt 0:00:01]} 86. Nd6 {[%emt 0:00:07]} Kf3 {[%emt 0:00:03]} 87. Bd3 {[%emt 0:00:01]} Kf4 {[%emt 0:00:01]} 88. Be4 {[%emt 0:00:01]} Kg5 {[%emt 0:00:05]} 89. Ke5 {[%emt 0:00:04]} Kg4 {[%emt 0:00:00]} 90. Nf5 {[%emt 0:00:01]} Kg5 {[%emt 0:00:01]} 91. Ne3 {[%emt 0:00:03]} Kh5 {[%emt 0:00:07]} 92. Bf5 {[%emt 0:00:17]} Kh6 {[%emt 0:00:01]} 93. Kf6 {[%emt 0:00:35]} Kh5 {[%emt 0:00:03]} 94. Ng2 {[%emt 0:00:02]} Kh6 {[%emt 0:00:02]} 95. Bg4 {[%emt 0:00:01]} Kh7 {[%emt 0:00:01]} 96. Ne3 {[%emt 0:00:07]} Kh6 {[%emt 0:00:01]} 97. Nf5+ {[%emt 0:00:08]} Kh7 {[%emt 0:00:01]} 98. Nd6 {[%emt 0:00:05]} Kh6 {[%emt 0:00:08]} 99. Nf7+ {[%emt 0:00:03]} Kh7 {[%emt 0:00:00]} 100. Bf5+ {[%emt 0:00:01]} Kg8 {[%emt 0:00:01]} 101. Be4 {[%emt 0:00:01]} Kf8 {[%emt 0:00:01]} 102. Bh7 {[%emt 0:00:01]} Ke8 {[%emt 0:00:01]} 103. Ne5 {[%emt 0:00:22]} Kd8 {[%emt 0:00:01]} 104. Ke6 {[%emt 0:00:05]} Kc7 {[%emt 0:00:01]} 105. Nd7 {[%emt 0:00:01]} Kc6 {[%emt 0:00:01]} 106. Bd3 {[%emt 0:00:02]} Kc7 {[%emt 0:00:00]} 107. Bb5 {[%emt 0:00:08]} Kd8 {[%emt 0:00:01]} 108. Nf6 {[%emt 0:00:01]} Kc7 {[%emt 0:00:02]} 109. Nd5+ {[%emt 0:00:01]} Kd8 {[%emt 0:00:02]} 110. Kd6 {[%emt 0:00:01]} Kc8 {[%emt 0:00:00]} 111. Ke7 {[%emt 0:00:01]} Kb7 {[%emt 0:00:01]} 112. Kd7 {[%emt 0:00:04]} Kb8 {[%emt 0:00:02]} 113. Ba6 {[%emt 0:00:08]} Ka7 {[%emt 0:00:01]} 114. Bc8 {[%emt 0:00:02]} Kb8 {[%emt 0:00:01]} 115. Kd8 {[%emt 0:00:01]} Ka7 {[%emt 0:00:00]} 116. Kc7 {[%emt 0:00:01]} Ka8 {[%emt 0:00:05]} 117. Ne7 {[%emt 0:00:01]} 1-0

[Event "MPL-4 Indian Chess Tour 2022"]
[Site "Chess24"]
[Date "2022.09.27"]
[Round "5.5"]
[White "Vaibhav, Suri"]
[Black "Narayanan.S.L"]
[Result "1/2-1/2"]
[ECO "C47"]
[WhiteElo "2600"]
[BlackElo "2657"]
[Annotator "TA"]
[PlyCount "53"]
[EventDate "2022.09.29"]
[EventType "tourn (rapid)"]
[EventCountry "NET"]
[SourceTitle "playchess.com"]
[Source "ChessBase"]
[SourceQuality "1"]
[WhiteTeam "India"]
[BlackTeam "India"]
[WhiteTeamCountry "IND"]
[BlackTeamCountry "IND"]
[TimeControl "900+10"]

{[%evp 13,53,0,0,0,5,10,8,3,4,0,0,0,0,0,0,0,0,0,0,0,0,-6,0,0,0,0,0,0,0,0,0,0,0,0,0,0,0,0,0,0,4,0]} 1. e4 {[%emt 0:00:00]} e5 {[%emt 0:00:00]} 2. Nf3 {[%emt 0:00:02]} Nc6 {[%emt 0:00:01]} 3. Nc3 {[%emt 0:00:02]} Nf6 {[%emt 0:00:02]} 4. d4 {[%emt 0:00:01]} exd4 {[%emt 0:00:01]} 5. Nxd4 {[%emt 0:00:00]} Bb4 {[%emt 0:00:01]} 6. Nxc6 {[%emt 0:00:02]} bxc6 {[%emt 0:00:01]} 7. Bd3 {[%emt 0:00:00]} d5 {[%emt 0:00:05] The position is equal.} 8. Bd2 {[%emt 0:00:10] C47: Scotch Four Knights and Four Knights with 4 g3.} Bxc3 {[%emt 0:00:48]} 9. Bxc3 {[%emt 0:00:04]} dxe4 {[%emt 0:00:01]} 10. Bxf6 {[%emt 0:02:00][%mdl 64] [#] Remove Defender} Qxf6 {[%emt 0:00:02]} 11. Bxe4 {[%emt 0:00:01]} Ba6 {[%emt 0:00:42] White must now prevent ...Qe7.} 12. Qf3 {[%emt 0:06:51]} Qxf3 {[%emt 0:02:10] [#]} 13. gxf3 $146 {[%emt 0:00:03]} ({Much worse is} 13. Bxf3 O-O-O 14. Bg4+ (14. Bxc6 $2 Rd6 $19) 14... Kb7 $17) ({Predecessor:} 13. Bxf3 O-O-O 14. Bg4+ Kb7 15. f4 Rd4 16. Bf3 Rxf4 17. O-O-O Re8 18. Rhe1 Rxe1 19. Rxe1 {0-1 (43) Adelshinov,R-Asanov,A (2050) Astrakhan 2012}) 13... O-O-O {[%emt 0:00:07] [#] Hoping for ...Rhe8.} 14. Rd1 $1 {[%emt 0:00:09]} c5 {[%emt 0:00:36]} 15. h4 {[%emt 0:00:43]} g6 {[%emt 0:00:05]} 16. h5 {[%emt 0:02:00]} f5 {[%emt 0:00:24] Threatens to win with ...Rxd1+.} 17. Bc6 {[%emt 0:00:02]} Rxd1+ {[%emt 0:00:06]} 18. Kxd1 $11 {[%emt 0:00:01][%mdl 4096] Endgame KRB-KRB} Rd8+ {[%emt 0:00:02]} 19. Kc1 {[%emt 0:00:01]} Bb7 {[%emt 0:00:02]} 20. Bxb7+ {[%emt 0:00:12]} Kxb7 {[%emt 0:00:00]} 21. hxg6 {[%emt 0:00:51]} hxg6 {[%emt 0:00:03] KR-KR} 22. Rh7 {[%emt 0:00:28]} Re8 {[%emt 0:00:19]} 23. Kd2 {[%emt 0:00:09]} Rd8+ {[%emt 0:00:01]} 24. Kc3 {[%emt 0:00:28]} Re8 {[%emt 0:00:02]} 25. Kd2 {[%emt 0:00:26]} Rd8+ {[%emt 0:00:02]} 26. Kc3 {[%emt 0:00:01]} Re8 {[%emt 0:00:00]} 27. Kd2 {[%emt 0:00:15] Not much happened in this game.  Weighted Error Value: White=0.01 (flawless) /Black=0.01 (flawless)} 1/2-1/2

[Event "MPL-4 Indian Chess Tour 2022"]
[Site "Chess24"]
[Date "2022.09.27"]
[Round "5.7"]
[White "Aronyak Ghosh"]
[Black "Mendonca, Leon Luke"]
[Result "1/2-1/2"]
[ECO "D14"]
[WhiteElo "2519"]
[BlackElo "2558"]
[Annotator "TA"]
[PlyCount "83"]
[EventDate "2022.09.29"]
[EventType "tourn (rapid)"]
[EventCountry "NET"]
[SourceTitle "playchess.com"]
[Source "ChessBase"]
[SourceQuality "1"]
[WhiteTeam "India"]
[BlackTeam "India"]
[WhiteTeamCountry "IND"]
[BlackTeamCountry "IND"]
[TimeControl "900+10"]

{[%evp 23,83,0,0,-9,0,0,0,-8,-1,-2,-4,-2,0,0,0,0,0,0,0,0,0,0,0,0,0,0,0,-5,0,0,8,0,0,0,0,0,0,0,0,0,0,0,0,0,0,0,0,0,0,0,0,0,0,0,0,0,0,0,0,0,0,0]} 1. c4 {[%emt 0:00:00]} c6 {[%emt 0:00:00]} 2. Nc3 {[%emt 0:00:47]} d5 {[%emt 0:00:02]} 3. d4 {[%emt 0:00:01]} Nf6 {[%emt 0:00:02]} 4. cxd5 {[%emt 0:00:02]} cxd5 {[%emt 0:00:02]} 5. Bf4 {[%emt 0:00:02]} Nc6 {[%emt 0:00:11]} 6. e3 {[%emt 0:00:03]} Bf5 {[%emt 0:00:06]} 7. Nf3 {[%emt 0:00:32]} e6 {[%emt 0:00:14]} 8. Bd3 {[%emt 0:00:05]} Bxd3 {[%emt 0:00:08]} 9. Qxd3 {[%emt 0:00:00]} Bd6 {[%emt 0:00:03]} 10. Bxd6 {[%emt 0:00:03]} Qxd6 {[%emt 0:00:01]} 11. O-O {[%emt 0:00:01]} O-O {[%emt 0:00:01]} 12. Rfc1 {[%emt 0:00:02]} Rfc8 {[%emt 0:00:04] The position is equal.} 13. Nd2 {[%emt 0:00:34] D14: Slav Defence: Exchange variation with ...Bf5.} Nd7 {[%emt 0:02:08]} 14. Ne2 {[%emt 0:00:28]} Ne7 {[%emt 0:03:02]} 15. Rxc8+ {[%emt 0:00:36]} Rxc8 {[%emt 0:00:03]} 16. Rc1 {[%emt 0:00:00]} Rxc1+ {[%emt 0:00:41]} 17. Nxc1 {[%emt 0:00:00] [#]} Nc6 $146 {[%emt 0:00:02]} ({Predecessor:} 17... a6 18. a3 Nc6 19. g3 g6 20. Kg2 Kg7 21. Qc2 Qc7 22. Nd3 Qb6 23. Qb3 Qxb3 24. Nxb3 {½-½ (30) Medak,B (2404)-Blazeka,M (2318) Bol 2014}) 18. Qc3 {[%emt 0:00:16]} Qb4 {[%emt 0:00:23]} 19. Qxb4 {[%emt 0:00:02]} Nxb4 $11 {[%emt 0:00:01][%mdl 4096] Endgame KNN-KNN} 20. a3 {[%emt 0:00:09]} Nc6 {[%emt 0:00:04]} 21. Nd3 {[%emt 0:00:05]} Kf8 {[%emt 0:00:02]} 22. Kf1 {[%emt 0:00:01]} Ke7 {[%emt 0:00:01]} 23. Ke2 {[%emt 0:00:00]} Kd6 {[%emt 0:00:03]} 24. Nb3 {[%emt 0:00:07]} b6 {[%emt 0:00:08]} 25. Kd2 {[%emt 0:00:05]} Ne7 {[%emt 0:00:18]} 26. Nbc1 {[%emt 0:00:06]} Nf5 {[%emt 0:00:23]} 27. Ke2 {[%emt 0:01:32]} Kc6 {[%emt 0:00:40]} 28. Na2 {[%emt 0:00:19]} Nd6 {[%emt 0:00:09]} 29. Nc3 {[%emt 0:00:36]} a5 {[%emt 0:01:49]} 30. a4 {[%emt 0:00:26]} Ne4 {[%emt 0:00:49]} 31. Nb5 {[%emt 0:00:17]} Nd6 {[%emt 0:00:12]} 32. Nxd6 {[%emt 0:00:22]} Kxd6 {[%emt 0:00:01] KN-KN} 33. Kd2 {[%emt 0:00:08]} Nb8 {[%emt 0:01:19]} 34. Kc3 {[%emt 0:00:04]} Nc6 {[%emt 0:00:03]} 35. b4 {[%emt 0:00:11]} f6 {[%emt 0:01:51]} 36. bxa5 {[%emt 0:00:14]} bxa5 {[%emt 0:00:02]} 37. Nc5 {[%emt 0:00:03]} g5 {[%emt 0:00:45]} 38. Nb7+ {[%emt 0:00:05]} Kc7 {[%emt 0:00:08]} 39. Nc5 {[%emt 0:00:01]} Kd6 {[%emt 0:00:01]} 40. Nb7+ {[%emt 0:00:01]} Kc7 {[%emt 0:00:01]} 41. Nc5 {[%emt 0:00:01]} Kd6 {[%emt 0:00:00]} 42. Nb7+ {[%emt 0:00:01] Not much happened in this game.  Weighted Error Value: White=0.01 (flawless) /Black=0.01 (flawless)} 1/2-1/2